lending/lending_fUSD_20250621
["ID","MTS","AMOUNT","RATE_DAILY","PERIOD"]
[366827229,1750483839942,-150.0,0.00028118,2]
[366827230,1750483839952,-700.0,0.0002817,2]
[366827231,1750483839962,-29304.45680105,0.00028192,2]
[366827232,1750483839972,-12117.85988898,0.00028256,2]
[366827233,1750483839982,-867.83108252,0.000283,2]
[366827234,1750483839992,-151.0,0.00028369,2]
[366827235,1750483840003,-1000.0,0.00028421,5]
[366827236,1750483840013,-1000.0,0.00028493,7]
[366827237,1750483840024,-1000.0,0.00028493,7]
[366827238,1750483840035,-791.61159895,0.00028493,7]
[366827239,1750483840046,-1355.48,0.000285,2]
[366827240,1750483840056,-8238.8,0.000285,2]
[366827241,1750483840065,-348.88,0.000285,2]
[366827242,1750483840075,-2910.28892233,0.000285,2]
[366827243,1750483840085,-348.88,0.000285,2]
[366827244,1750483840095,-29304.45680105,0.00028594,2]
[366827245,1750483840104,-2000.0,0.00028739,60]
[366827246,1750483840116,-512.821426,0.00028739,120]
[366827247,1750483840125,-6393.31,0.00028767,2]
[366827248,1750483840135,-500.0,0.00028773,5]
[366827249,1750483840145,-151.32,0.0002879,2]
[366827250,1750483840155,-151.32,0.0002879,2]
[366827251,1750483840165,-151.32,0.0002879,2]
[366827252,1750483840175,-226.8332916,0.0002879,2]
[366827253,1750483840185,-1355.48,0.000288,2]
[366827254,1750483840194,-8238.8,0.000288,2]
[366827255,1750483840204,-348.88,0.000288,2]
[366827256,1750483840214,-238.0,0.000288,2]
[366827257,1750483840224,-292127.19548584,0.000288,2]
[366827258,1750483840246,-460.16963602,0.000288,2]
[366827259,1750483840398,-224.95521603,0.00026742,2]
[366827260,1750483840408,-641.1600631,0.000288,2]
[366827262,1750483840420,-764.947,0.000288,2]
[366827264,1750483840431,-987.38451583,0.000288,2]
[366827266,1750483840443,-375.712,0.000288,2]
[366827271,1750483840479,-1037.80617052,0.000288,2]
[366827277,1750483840543,-967.07159406,0.000288,2]
[366827412,1750483844817,-224.95521603,0.00027005,2]
[366827413,1750483844828,-251.505994,0.0002811,2]
[366827414,1750483844985,-603.494006,0.0002811,2]
[366827415,1750483844995,-250.52224339,0.000288,2]
[366827416,1750483845038,-1828.93742716,0.000288,2]
[366827417,1750483845104,-1302.7999999,0.000288,2]
[366827482,1750483845834,-310.1042444,0.000288,2]
[366827500,1750483845996,-51959.40864539,0.000288,2]
[366827502,1750483846006,-376.0,0.000288,2]
[366827504,1750483846017,-769.0,0.000288,2]
[366827507,1750483846036,-348.88,0.000288,2]
[366827509,1750483846051,-150.0,0.000288,2]
[366827512,1750483846062,-432.02194034,0.00028802,2]
[366827514,1750483846072,-150.0,0.00028839,2]
[366827516,1750483846083,-200.0,0.00028889,2]
[366827518,1750483846094,-151.32,0.0002889,2]
[366827520,1750483846104,-461.86,0.00028895,2]
[366827522,1750483846121,-1355.48,0.000289,2]
[366827524,1750483846132,-8238.8,0.000289,2]
[366827527,1750483846143,-348.88,0.000289,2]
[366827529,1750483846154,-500.0,0.000289,5]
[366827531,1750483846165,-2600.0,0.000289,10]
[366827533,1750483846175,-348.88,0.000289,2]
[366827535,1750483846186,-1357.693991,0.00028905,8]
[366827537,1750483846196,-210.0,0.00028938,12]
[366827539,1750483846207,-507.38324038,0.00028968,5]
[366827541,1750483846217,-151.32,0.0002899,2]
[366827543,1750483846228,-29304.45680105,0.00028995,2]
[366827545,1750483846238,-238.65,0.00029,2]
[366827547,1750483846248,-348.88,0.00029,2]
[366827549,1750483846259,-161.0,0.00029,120]
[366827552,1750483846269,-11811.28,0.00029,2]
[366827554,1750483846280,-11811.28,0.00029,2]
[366827556,1750483846290,-2000.0,0.00029,2]
[366827558,1750483846300,-178.0,0.00029,120]
[366827560,1750483846311,-2035.55407036,0.00029,2]
[366827564,1750483846342,-2739.97587553,0.00029,2]
[366827568,1750483846367,-65644.57005926,0.00029,2]
[366827570,1750483846378,-155.61,0.00029,2]
[366827572,1750483846389,-155.61,0.00029,2]
[366827574,1750483846399,-50621.03266432,0.00029,2]
[366827576,1750483846410,-23917.72504624,0.00029,2]
[366827578,1750483846420,-12117.85988898,0.00029007,2]
[366827580,1750483846431,-1277.75608228,0.00029041,120]
[366827582,1750483846441,-151.32,0.0002909,2]
[366827584,1750483846452,-11811.28,0.000291,2]
[366827586,1750483846462,-12418.27,0.000291,2]
[366827589,1750483846479,-162.380719,0.000292,2]
[366827591,1750483846490,-223.0315306,0.000292,2]
[366827594,1750483846501,-348.88,0.000293,2]
[366827596,1750483846511,-1355.48,0.000293,2]
[366827598,1750483846522,-8238.8,0.000293,2]
[366827600,1750483846531,-348.88,0.000293,2]
[366827602,1750483846542,-348.88,0.000293,2]
[366827604,1750483846553,-150.53,0.00029315,2]
[366827606,1750483846564,-163.58,0.00029315,2]
[366827608,1750483846574,-5190.33836,0.00029316,2]
[366827610,1750483846585,-1000.0,0.00029321,5]
[366827613,1750483846596,-237.07,0.00029377,2]
[366827615,1750483846606,-29304.45680105,0.00029397,2]
[366827617,1750483846617,-814.87527908,0.00029398,2]
[366827619,1750483846627,-1000.0,0.00029448,5]
[366827621,1750483846638,-150.0,0.00029455,2]
[366827623,1750483846649,-150.0,0.00029458,2]
[366827625,1750483846660,-150.0,0.00029458,2]
[366827627,1750483846670,-150.0,0.00029472,2]
[366827629,1750483846681,-150.0,0.00029475,2]
[366827631,1750483846692,-150.0,0.00029477,2]
[366827632,1750483846703,-150.0,0.00029477,2]
[366827633,1750483846714,-150.0,0.00029479,2]
[366827634,1750483846725,-150.0,0.00029481,2]
[366827635,1750483846736,-150.0,0.00029491,2]
[366827636,1750483846747,-150.0,0.00029492,2]
[366827637,1750483846758,-2910.25,0.000295,2]
[366827638,1750483846769,-150.0,0.00029507,2]
[366827639,1750483846780,-150.0,0.00029522,2]
[366827640,1750483846792,-150.0,0.00029523,2]
[366827641,1750483846805,-150.0,0.00029525,2]
[366827642,1750483846817,-150.0,0.00029531,2]
[366827643,1750483846827,-150.0,0.00029536,2]
[366827644,1750483846839,-150.0,0.00029538,2]
[366827645,1750483846850,-150.0,0.00029541,2]
[366827646,1750483846861,-200.0,0.0002956,2]
[366827647,1750483846872,-150.0,0.0002956,2]
[366827648,1750483846883,-200.0,0.00029561,2]
[366827649,1750483846895,-151.67477873,0.0002957,2]
[366827650,1750483846911,-150.0,0.00029575,2]
[366827651,1750483846922,-150.0,0.00029576,2]
[366827652,1750483846934,-150.0,0.00029578,2]
[366827653,1750483846945,-150.0,0.0002958,2]
[366827654,1750483846956,-150.0,0.00029582,2]
[366827655,1750483846966,-1000.0,0.00029587,2]
[366827656,1750483846976,-150.0,0.0002959,2]
[366827657,1750483846988,-150.0,0.0002959,2]
[366827658,1750483846999,-359.79616984,0.00029597,2]
[366827659,1750483847009,-150.0,0.00029602,2]
[366827660,1750483847020,-150.0,0.00029606,2]
[366827661,1750483847031,-150.0,0.00029607,2]
[366827662,1750483847043,-150.0,0.00029607,2]
[366827663,1750483847053,-150.0,0.00029612,2]
[366827664,1750483847064,-150.0,0.00029628,2]
[366827665,1750483847076,-522.44,0.00029632,120]
[366827666,1750483847087,-150.0,0.00029637,2]
[366827667,1750483847097,-1000.0,0.00029681,2]
[366827668,1750483847110,-150.0,0.00029684,2]
[366827669,1750483847123,-150.0,0.0002969,2]
[366827670,1750483847134,-1000.0,0.00029691,2]
[366827671,1750483847145,-150.0,0.00029695,2]
[366827672,1750483847158,-150.0,0.00029698,2]
[366827673,1750483847168,-150.0,0.00029699,2]
[366827674,1750483847179,-787.72818494,0.000297,7]
[366827675,1750483847192,-348.88,0.000297,2]
[366827676,1750483847203,-7639.0,0.000297,2]
[366827677,1750483847214,-2910.25,0.000297,2]
[366827678,1750483847225,-150.0,0.00029704,2]
[366827679,1750483847237,-1000.0,0.0002973,2]
[366827680,1750483847248,-150.0,0.00029731,2]
[366827681,1750483847258,-150.0,0.00029731,2]
[366827682,1750483847268,-12117.85988898,0.00029758,2]
[366827683,1750483847279,-400.0,0.0002977,2]
[366827684,1750483847289,-151.32,0.00029789,2]
[366827685,1750483847303,-151.32,0.0002979,2]
[366827686,1750483847314,-151.32,0.0002979,2]
[366827687,1750483847325,-151.32,0.00029798,2]
[366827688,1750483847335,-151.32,0.00029798,2]
[366827689,1750483847351,-29304.45680105,0.00029799,2]
[366827690,1750483847361,-151.0,0.00029799,2]
[366827691,1750483847372,-297.17200838,0.00029799,2]
[366827692,1750483847383,-286245.10440653,0.000298,120]
[366827693,1750483860335,4047.0,0.000195,5]
[366827697,1750484474867,5126.31487102,0.000247,120]
[366827698,1750484521364,250.0,0.00015,2]
[366827699,1750484618459,10000.0,0.000247,120]
[366827700,1750484627966,10000.0,0.000247,120]
[366827701,1750484635974,10000.0,0.000247,120]
[366827702,1750484643656,10000.0,0.000247,120]
[366827703,1750484651528,10000.0,0.000247,120]
[366827704,1750484658836,10000.0,0.000247,120]
[366827705,1750484667289,10000.0,0.000247,120]
[366827706,1750484675124,10000.0,0.000247,120]
[366827707,1750484685716,10000.0,0.000247,120]
[366827708,1750484697147,10000.0,0.000247,120]
[366827709,1750484704842,10000.0,0.000247,120]
[366827710,1750484715419,10000.0,0.000247,120]
[366827712,1750484885370,152.51,0.00013699,2]
[366827736,1750485032125,-152.51,0.00021404,2]
[366827737,1750485032135,-268.32,0.000221,7]
[366827738,1750485032145,-41.50081884,0.0002251,7]
[366827739,1750485032224,-158.49918116,0.0002251,7]
[366827740,1750485032235,-252.49,0.00022859,2]
[366827741,1750485032245,-247.4,0.00022859,2]
[366827742,1750485032255,-304.59,0.00022913,2]
[366827743,1750485032265,-200.0,0.000231,7]
[366827744,1750485032275,-250.77,0.00023646,2]
[366827745,1750485032285,-303.39,0.00023693,2]
[366827746,1750485032295,-200.0,0.000241,7]
[366827747,1750485032305,-77.9372581,0.000241,7]
[366827748,1750485032321,-322.0627419,0.000241,7]
[366827749,1750485032332,-301.06,0.00024247,2]
[366827751,1750485032341,-245.27,0.00024247,2]
[366827752,1750485032351,-171.63,0.0002484,2]
[366827753,1750485032362,-267.06807742,0.00024997,2]
[366827851,1750485037943,-456.94999604,0.00024997,2]
[366827852,1750485038048,-475.98192654,0.00024997,2]
[366827853,1750485038061,-152.46632346,0.00024998,2]
[366827854,1750485038158,-147.53367654,0.00024998,2]
[366827855,1750485038171,-305.41,0.00024999,2]
[366827856,1750485038184,-249.52,0.00024999,2]
[366827857,1750485038197,-304.77,0.00024999,2]
[366827858,1750485038209,-115.69758566,0.00024999,2]
[366827859,1750485038227,-137.93241434,0.00024999,2]
[366827860,1750485038240,-251.84,0.00024999,2]
[366827861,1750485038252,-251.86,0.00025,2]
[366827862,1750485038265,-151.35,0.00025,2]
[366827864,1750485038278,-248.96,0.00025,2]
[366827867,1750485038290,-305.8,0.00025,2]
[366827869,1750485038302,-245.39,0.00025,2]
[366827871,1750485038315,-301.17,0.00025,2]
[366827873,1750485038328,-92.34986455,0.00025,2]
[366828191,1750485045168,-248.22,0.00024997,2]
[366828192,1750485045179,-300.35,0.00024997,2]
[366828193,1750485045190,-158.04013545,0.00025,2]
[366828194,1750485045201,-248.49,0.00025,2]
[366828195,1750485045210,-190.22287306,0.00025,2]
[366828196,1750485045552,-112.53712694,0.00025,2]
[366828197,1750485045562,-248.91,0.00025,2]
[366828198,1750485045572,-248.28,0.00025,2]
[366828199,1750485045582,-304.67,0.00025,2]
[366828200,1750485045592,-245.24,0.00025,2]
[366828201,1750485045602,-250.87,0.00025,2]
[366828203,1750485045612,-302.7,0.00025,2]
[366828204,1750485045622,-246.17,0.00025,2]
[366828205,1750485045632,-305.75,0.00025,2]
[366828206,1750485045644,-250.21,0.00025,2]
[366828207,1750485045655,-249.02,0.00025,2]
[366828208,1750485045664,-305.94,0.00025,2]
[366828210,1750485045674,-246.77,0.00025,2]
[366828212,1750485045684,-245.49,0.00025,2]
[366828214,1750485045693,-305.92,0.00025,2]
[366828216,1750485045703,-98.17177901,0.00025,2]
[366828219,1750485045715,-154.88822099,0.00025,2]
[366828221,1750485045724,-251.16,0.00025,2]
[366828222,1750485045734,-304.66,0.00025,2]
[366828225,1750485045744,-253.99,0.00025,2]
[366828226,1750485045753,-304.53,0.00025,2]
[366828229,1750485045762,-246.3,0.00025,2]
[366828232,1750485045783,-254.53,0.00025,2]
[366828234,1750485045796,-303.95,0.00025,2]
[366828236,1750485045806,-7.79476549,0.00025,2]
[366828264,1750485046097,-237.74523451,0.00025,2]
[366828265,1750485046108,-252.33,0.00025,2]
[366828266,1750485046118,-304.99,0.00025,2]
[366828267,1750485046129,-251.68,0.00025,2]
[366828268,1750485046139,-252.79,0.00025,2]
[366828269,1750485046149,-304.13,0.00025,2]
[366828270,1750485046159,-252.82,0.00025,2]
[366828271,1750485046169,-248.65,0.00025,2]
[366828272,1750485046179,-302.88,0.00025,2]
[366828273,1750485046190,-249.36,0.00025,2]
[366828274,1750485046200,-297.68887132,0.00025,2]
[366828275,1750485046424,-7.57112868,0.00025,2]
[366828276,1750485046435,-246.15,0.00025,2]
[366828277,1750485046446,-252.44,0.00025,2]
[366828278,1750485046456,-305.03,0.00025,2]
[366828279,1750485046466,-246.62,0.00025,2]
[366828280,1750485046476,-251.8,0.00025,2]
[366828282,1750485046486,-200.0,0.000251,7]
[366828283,1750485046496,-155.94,0.00025777,2]
[366828284,1750485046506,-250.0,0.00025808,2]
[366828285,1750485046516,-1000.0,0.00025839,2]
[366828286,1750485046525,-353.64937132,0.000259,14]
[366828369,1750486020748,153.13,0.00013699,2]
[366828372,1750486076209,446.51942089,0.000247,120]
[366828391,1750486232359,-153.13,0.00020951,2]
[366828392,1750486232374,-2249.06652364,0.00022486,5]
[366828393,1750486232391,-955.26579434,0.00022486,5]
[366828394,1750486232403,-76828.4992613,0.00022486,5]
[366828395,1750486232417,-578.6680823,0.00022486,5]
[366828396,1750486232431,-7193.94003768,0.00022486,5]
[366828397,1750486232448,-642.3494301,0.00022486,5]
[366828398,1750486232465,-23978.39295762,0.00022486,5]
[366828399,1750486232480,-311.88590251,0.00022486,5]
[366828400,1750486232496,-4008.60135854,0.00022486,5]
[366828401,1750486232513,-1124.911587,0.00022486,5]
[366828402,1750486232534,-819.71793754,0.00022486,5]
[366828403,1750486232550,-66240.66772811,0.00022486,5]
[366828404,1750486232565,-1829.73285091,0.00022486,5]
[366828405,1750486232594,-606.54860783,0.00022486,5]
[366828406,1750486232609,-24100.01988006,0.00022486,5]
[366828407,1750486232624,-40099.27233378,0.00022486,5]
[366828408,1750486232640,-8971.46852804,0.00022486,5]
[366828409,1750486232654,-1450.00000001,0.00022486,5]
[366828410,1750486232671,-1670.81080475,0.00022486,5]
[366828411,1750486232687,-790.25782199,0.00022486,5]
[366828412,1750486232701,-291.10000002,0.00022486,5]
[366828413,1750486232715,-8329.96622916,0.00022486,5]
[366828511,1750486238178,-788.16178737,0.00022486,5]
[366828512,1750486238234,-10454.91467807,0.00022486,5]
[366828513,1750486238453,-5352.37199448,0.00022486,5]
[366828524,1750486240331,-2015.8806003,0.00022486,5]
[366828525,1750486240390,-1792.60513274,0.00022486,5]
[366828526,1750486240402,-471.70132414,0.00022486,5]
[366828527,1750486240556,-72038.03709548,0.00022486,5]
[366828528,1750486240567,-23900.0,0.00022486,2]
[366828529,1750486240577,-200.18,0.00022516,2]
[366828530,1750486240586,-397.21549356,0.0002279,2]
[366828531,1750486240596,-424.94062952,0.00022889,2]
[366828532,1750486240606,-1200.0,0.00022889,2]
[366828533,1750486240616,-300.0,0.00022889,2]
[366828534,1750486240625,-9263.40018389,0.0002289,2]
[366828535,1750486240634,-20148.84957606,0.0002289,2]
[366828536,1750486240644,-156.52,0.00022913,2]
[366828537,1750486240654,-156.52,0.00022921,2]
[366828538,1750486240664,-156.52,0.00022929,2]
[366828539,1750486240674,-156.52,0.00022936,2]
[366828541,1750486240683,-156.52,0.00022944,2]
[366828543,1750486240693,-156.52,0.00022952,2]
[366828545,1750486240702,-156.52,0.00022959,2]
[366828547,1750486240711,-156.52,0.00022967,2]
[366828549,1750486240721,-156.52,0.00022975,2]
[366828551,1750486240730,-156.52,0.00022982,2]
[366828552,1750486240739,-30423.52,0.00022984,2]
[366828554,1750486240748,-4807.53413721,0.00022989,2]
[366828556,1750486240757,-254.43,0.00022989,2]
[366828558,1750486240766,-303.29,0.00022989,2]
[366828560,1750486240776,-246.73,0.00022989,2]
[366828562,1750486240785,-249.64,0.00022989,2]
[366828563,1750486240795,-251.14,0.00022989,2]
[366828564,1750486240804,-305.71,0.00022989,2]
[366828565,1750486240814,-245.76,0.00022989,2]
[366828566,1750486240824,-254.78,0.00022989,2]
[366828567,1750486240833,-300.39,0.00022989,2]
[366828568,1750486240843,-250.41,0.00022989,2]
[366828569,1750486240852,-303.43,0.00022989,2]
[366828570,1750486240862,-254.06,0.00022989,2]
[366828571,1750486240871,-252.74,0.00022989,2]
[366828572,1750486240880,-301.93,0.00022989,2]
[366828573,1750486240889,-253.28,0.00022989,2]
[366828574,1750486240898,-253.63,0.00022989,2]
[366828575,1750486240907,-305.36,0.00022989,2]
[366828576,1750486240916,-253.78,0.00022989,2]
[366828577,1750486240925,-254.09,0.00022989,2]
[366828578,1750486240934,-304.54,0.00022989,2]
[366828579,1750486240943,-245.75,0.00022989,2]
[366828580,1750486240951,-245.34,0.00022989,2]
[366828581,1750486240959,-301.79,0.00022989,2]
[366828582,1750486240968,-253.24,0.00022989,2]
[366828583,1750486240977,-246.73,0.00022989,2]
[366828584,1750486240985,-304.11,0.00022989,2]
[366828585,1750486240993,-247.7,0.00022989,2]
[366828586,1750486241001,-301.4,0.00022989,2]
[366828587,1750486241010,-250.25,0.00022989,2]
[366828588,1750486241019,-250.15,0.00022989,2]
[366828589,1750486241028,-305.35,0.00022989,2]
[366828590,1750486241037,-250.01,0.00022989,2]
[366828591,1750486241046,-246.83,0.00022989,2]
[366828592,1750486241055,-303.37,0.00022989,2]
[366828593,1750486241063,-248.29,0.00022989,2]
[366828594,1750486241072,-304.04,0.00022989,2]
[366828595,1750486241080,-249.13,0.00022989,2]
[366828596,1750486241089,-247.31,0.00022989,2]
[366828597,1750486241098,-304.97,0.00022989,2]
[366828598,1750486241107,-248.05,0.00022989,2]
[366828599,1750486241116,-247.55,0.00022989,2]
[366828601,1750486241125,-300.34,0.00022989,2]
[366828602,1750486241134,-249.99,0.00022989,2]
[366828603,1750486241143,-245.73,0.00022989,2]
[366828604,1750486241152,-300.84,0.00022989,2]
[366828605,1750486241162,-254.14,0.00022989,2]
[366828606,1750486241172,-251.28,0.00022989,2]
[366828607,1750486241181,-305.53,0.00022989,2]
[366828608,1750486241191,-254.59,0.00022989,2]
[366828609,1750486241200,-252.31,0.00022989,2]
[366828610,1750486241209,-254.2,0.00022989,2]
[366828611,1750486241219,-300.37,0.00022989,2]
[366828612,1750486241229,-304.26,0.00022989,2]
[366828613,1750486241239,-245.21,0.00022989,2]
[366828614,1750486241248,-249.81,0.00022989,2]
[366828615,1750486241257,-302.28,0.00022989,2]
[366828616,1750486241266,-156.52,0.0002299,2]
[366828617,1750486241275,-2797.81410583,0.0002299,2]
[366828618,1750486241285,-304.67,0.0002299,2]
[366828619,1750486241294,-245.18,0.0002299,2]
[366828620,1750486241304,-250.93,0.0002299,2]
[366828621,1750486241314,-301.41,0.0002299,2]
[366828622,1750486241328,-251.21,0.0002299,2]
[366828623,1750486241338,-248.55,0.0002299,2]
[366828624,1750486241348,-300.46,0.0002299,2]
[366828625,1750486241358,-250.17,0.0002299,2]
[366828626,1750486241368,-252.58,0.0002299,2]
[366828627,1750486241377,-304.5,0.0002299,2]
[366828628,1750486241386,-251.15,0.0002299,2]
[366828629,1750486241398,-302.66,0.0002299,2]
[366828630,1750486241407,-250.3,0.0002299,2]
[366828631,1750486241416,-254.66,0.0002299,2]
[366828632,1750486241426,-305.01,0.0002299,2]
[366828633,1750486241435,-254.67,0.0002299,2]
[366828634,1750486241445,-254.33,0.0002299,2]
[366828635,1750486241455,-304.64,0.0002299,2]
[366828636,1750486241464,-245.42,0.0002299,2]
[366828637,1750486241474,-156.52,0.00022998,2]
[366828638,1750486241484,-47328.0,0.00023,2]
[366828639,1750486241494,-247.34,0.00023,2]
[366828640,1750486241504,-156.52,0.00023005,2]
[366828641,1750486241513,-156.52,0.00023013,2]
[366828642,1750486241523,-156.52,0.0002302,2]
[366828643,1750486241533,-156.52,0.00023028,2]
[366828644,1750486241542,-630.86,0.00023071,2]
[366828645,1750486241552,-500.0,0.000236,2]
[366828646,1750486241561,-500.0,0.000236,2]
[366828647,1750486241571,-446.04353842,0.00023733,2]
[366828648,1750486241581,-500.0,0.00023733,2]
[366828649,1750486241591,-500.0,0.00023733,2]
[366828650,1750486241601,-500.0,0.00023733,2]
[366828651,1750486241610,-500.0,0.00023775,2]
[366828652,1750486241620,-9263.40018389,0.00023947,2]
[366828653,1750486241630,-20148.84957599,0.00023958,2]
[366828654,1750486241640,-500.0,0.00024125,2]
[366828655,1750486241649,-1000.0,0.00024148,2]
[366828656,1750486241659,-581.50353553,0.00024148,2]
[366828657,1750486241668,-1407.05458172,0.000242,10]
[366828658,1750486241678,-1407.05458153,0.000242,10]
[366828659,1750486241687,-1407.05458153,0.000242,10]
[366828660,1750486241696,-1000.0,0.00024281,2]
[366828661,1750486241705,-1000.0,0.00024281,2]
[366828662,1750486241714,-500.0,0.00024281,2]
[366828663,1750486241723,-424.94062948,0.00024419,2]
[366828664,1750486241732,-200.0,0.00024504,2]
[366828665,1750486241741,-397.21549349,0.0002452,2]
[366828666,1750486241751,-155.64,0.00024536,2]
[366828667,1750486241760,-1407.05458153,0.00024555,11]
[366828668,1750486241769,-274.75,0.00024565,2]
[366828669,1750486241778,-1000.0,0.00024673,2]
[366828670,1750486241788,-1500.0,0.00024696,2]
[366828671,1750486241798,-4236.01,0.00024786,2]
[366828672,1750486241808,-113707.111233,0.000248,2]
[366828673,1750486241818,-1500.0,0.00024829,2]
[366828674,1750486241828,-1000.0,0.00024843,2]
[366828675,1750486241837,-500.0,0.000249,2]
[366828676,1750486241847,-503.39243483,0.000249,2]
[366828677,1750486241856,-1680.0,0.00024965,2]
[366828678,1750486241866,-3073.16516845,0.00024986,2]
[366828679,1750486241875,-3073.16516845,0.00024987,2]
[366828680,1750486241885,-6146.3303369,0.00024993,2]
[366828681,1750486241894,-248.94,0.00024996,2]
[366828682,1750486241904,-248.85,0.00024996,2]
[366828683,1750486241914,-301.61,0.00024996,2]
[366828684,1750486241924,-245.5,0.00024997,2]
[366828685,1750486241933,-300.75,0.00024997,2]
[366828686,1750486241943,-247.04,0.00024997,2]
[366828687,1750486241953,-250.04,0.00024997,2]
[366828688,1750486241963,-302.94,0.00024997,2]
[366828689,1750486241972,-253.07,0.00024997,2]
[366828690,1750486241982,-304.66,0.00024997,2]
[366828691,1750486241991,-252.02,0.00024997,2]
[366828692,1750486242001,-248.66,0.00024997,2]
[366828693,1750486242012,-304.1,0.00024997,2]
[366828694,1750486242022,-251.01,0.00024997,2]
[366828695,1750486242032,-252.62,0.00024997,2]
[366828696,1750486242041,-303.93,0.00024997,2]
[366828697,1750486242051,-248.03,0.00024997,2]
[366828698,1750486242060,-253.47,0.00024997,2]
[366828699,1750486242070,-300.56,0.00024997,2]
[366828700,1750486242079,-9263.40018389,0.00025003,2]
[366828701,1750486242089,-20148.84957599,0.00025026,2]
[366828702,1750486242098,-3073.16516845,0.00025097,2]
[366828703,1750486242108,-1407.05458153,0.00025107,12]
[366828704,1750486242117,-666.0,0.00025135,2]
[366828705,1750486242126,-207.04,0.00025205,2]
[366828706,1750486242136,-6320.31,0.00025205,2]
[366828707,1750486242145,-1500.0,0.00025221,2]
[366828708,1750486242154,-165.0,0.00025233,2]
[366828709,1750486242164,-1106.29459289,0.00025244,2]
[366828710,1750486242174,-300.0,0.00025287,2]
[366828711,1750486242184,-300.0,0.00025287,2]
[366828712,1750486242194,-250.0,0.00025287,2]
[366828713,1750486242204,-3350.81,0.00025312,2]
[366828714,1750486242214,-200.18,0.0002533,120]
[366828715,1750486242224,-1500.0,0.00025377,2]
[366828716,1750486242233,-204.0,0.0002539,2]
[366828717,1750486242243,-201.0,0.0002539,2]
[366828718,1750486242253,-205.0,0.0002539,2]
[366828719,1750486242262,-344.94,0.00025398,2]
[366828720,1750486242272,-1000.0,0.00025448,2]
[366828721,1750486242282,-260.0,0.00025477,2]
[366828722,1750486242292,-165.35,0.00025527,2]
[366828723,1750486242302,-746.82198449,0.00025632,2]
[366828724,1750486242312,-1407.05458153,0.00025659,13]
[366828725,1750486242326,-2000.0,0.00025769,2]
[366828726,1750486242335,-237.7376067,0.00025839,2]
[366828727,1750486242344,-4587.11781,0.00025839,2]
[366828728,1750486242352,-300.0,0.000259,2]
[366828729,1750486242363,-165.29,0.00025928,2]
[366828730,1750486242372,-424.94062948,0.00025948,2]
[366828731,1750486242381,-1006.55424014,0.00025996,2]
[366828732,1750486242390,-9263.40018389,0.0002606,2]
[366828733,1750486242400,-164.03,0.00026076,2]
[366828734,1750486242410,-20148.84957599,0.00026094,2]
[366828735,1750486242419,-164.03,0.00026142,2]
[366828736,1750486242429,-164.03,0.00026207,2]
[366828737,1750486242438,-1407.05458153,0.0002621,14]
[366828738,1750486242448,-397.21549349,0.0002625,2]
[366828739,1750486242457,-500.0,0.00026317,2]